Cogmind - Beta 17 @@@ ROGUE MODE // 2026.06.24 @ 23:55:53 Player: Ceorik Result: Destroyed by U9-C24(R) with Subdweller Machine Gun Performance ------------- Evolutions (0) 0 Regions Visited (3) 600 Robots Destroyed (28) 140 Value Destroyed (521) 521 Prototype IDs (14) 280 Alien Tech Used (0) 0 Bonus (0) 0 TOTAL SCORE: 1541 Bonus ------- None Cogmind --------- Core Integrity 0/250 Matter 31/300 Energy 275/275 System Corruption 0% Temperature Cool (0) Movement Rolling (110) Ox2 Location -10/Subcaves Parts ------- > --- POWER (1) -------- Deuterium Engine > --- PROPULSION (2) --- Light Treads Wheel > --- UTILITY (2) ------ Medium Storage Unit > --- WEAPON (2) ------- Subdweller Shrapnel Launcher > --- INVENTORY (10) --- Meta Core Wheel Improved Heat Sink Medium Matter Pod (64) Tractor Beam Assault Rifle Light Assault Rifle Battle Rifle Makeshift Sword Peak State ------------ > --- POWER ------------ Deuterium Engine > --- PROPULSION ------- Light Treads Spiked Treads > --- UTILITY ---------- Medium Storage Unit Light Armor Plating > --- WEAPON ----------- Battle Rifle Makeshift Sword > --- INVENTORY -------- Meta Core Wheel Wheel Improved Heat Sink Medium Matter Pod Tractor Beam Assault Rifle High-powered Shotgun Grenade Launcher Subdweller Shrapnel Launcher [Rating: 16] Favorites ----------- Power Light Ion Engine Engine Light Ion Engine Propulsion Light Treads Treads Light Treads Leg Aluminum Leg Wheel Wheel Utility Medium Storage Unit Device Improved Heat Sink Storage Medium Storage Unit Protection Light Armor Plating Weapon Assault Rifle Energy Gun Medium Laser Ballistic Gun Assault Rifle Launcher Grenade Launcher Special Weapon Mining Laser Slashing Weapon Makeshift Sword Build | -11 -10 -10 -10 ------- Run | Yrd Mat Min Sub Slots Evolved . | . . . . Power . | . . . . Propulsion . | . . . . Utility . | . . . . Weapon . | . . . . Parts Attached 18 | 2 3 4 9 Power 3 | . . 2 1 Engine 3 | . . 2 1 Core . | . . . . Reactor . | . . . . Propulsion 4 | 2 . . 2 Treads 3 | 2 . . 1 Leg . | . . . . Wheel 1 | . . . 1 Hover . | . . . . Flight . | . . . . Utility 3 | . 1 1 1 Device 1 | . . 1 . Storage 1 | . 1 . . Processor . | . . . . Hackware . | . . . . Protection 1 | . . . 1 Artifact . | . . . . Weapon 8 | . 2 1 5 Energy Gun . | . . . . Energy Cannon . | . . . . Ballistic Gun 4 | . 1 1 2 Ballistic Cannon . | . . . . Launcher 2 | . 1 . 1 Special Weapon 1 | . . . 1 Impact Weapon . | . . . . Slashing Weapon 1 | . . . 1 Piercing Weapon . | . . . . Special Melee Weapon . | . . . . Unidentified Prototypes . | . . . . Parts Lost 4 | . . . 4 Power . | . . . . Propulsion 1 | . . . 1 Utility 1 | . . . 1 Weapon 2 | . . . 2 Highest Loss Streak 2 | . . . 2 To Critical Strikes . | . . . . Average Backups 9 | 6 6 9 9 Power . | 1 1 1 . Propulsion 2 | 4 2 2 2 Utility 2 | . . 1 2 Weapon 3 | 1 2 3 3 Tool/Special . | . . . . Unused Backups 11 | . 2 4 5 Power 2 | . . 2 . Propulsion 4 | . 2 1 1 Utility 2 | . . . 2 Weapon 2 | . . 1 1 Tool/Special 1 | . . . 1 Average Slot Usage (%) 93 | . 85 87 99 Engine 14 | . 14 14 14 Treads 27 | . 28 28 26 Device 1 | . . 2 1 Storage 14 | . 14 14 14 Protection 6 | . . . 12 Ballistic Gun 26 | . 23 27 25 Peak Build Rating 16 | 6 7 12 16 Average Rating 10 | 6 6 7 13 On Entrance 7 | 6 6 6 12 Avg Prop Armor Cover (%) 9 | . . . 9 Naked Turns . | . . . . Heaviest Build 28 | 12 17 21 28 Greatest Support 40 | 40 40 40 40 Greatest Overweight (x) 2 | . . . 2 Average Overweight (x) . | . . . . Largest Inventory Capacity 10 | 8 10 10 10 Average Capacity 9 | 8 8 10 10 Most Carried 10 | 6 8 10 10 Average Carried 9 | 6 6 9 9 Final Capacity 10 | 8 10 10 10 Final Carried 10 | 6 7 10 9 Class Distribution -------------------- 100% | Mutant Dominant Class ---------------- Mutant | -10/Materials Mutant | -10/Mines Mutant | -10/Subcaves Resources | -11 -10 -10 -10 ----------- Run | Yrd Mat Min Sub Matter Collected 928 | 191 27 265 445 Remotely . | . . . . Salvage Created 534 | . 33 193 308 Parts 47 | . 8 17 22 Haulers Intercepted . | . . . . Recyclers Shooed 1 | . . 1 . Parts Field Recycled . | . . . . Retrieved Matter . | . . . . Parts Self-Destructed 11 | . . . 11 Prevented . | . . . . Parts Restored . | . . . . Kills | -11 -10 -10 -10 ------- Run | Yrd Mat Min Sub Combat Hostiles Destroyed 24 | . 3 3 18 Guns 8 | . 1 . 7 AOE 16 | . 2 3 11 Classes Destroyed 5 | . 1 2 2 Tunneler 2 | . . 2 . Recycler 2 | . . 2 . Swarmer 16 | . 3 3 10 Sentry 1 | . . . 1 Subdweller 7 | . . . 7 Best Kill Streak 6 | . 2 4 6 Combat Bots Only 6 | . 2 3 6 Max Kills in Single Turn 3 | . 1 2 3 Gunslinging . | . . . . Exploded 3 | . 1 2 3 Melee . | . . . . Uniques/NPCs Destroyed . | . . . . Combat | -11 -10 -10 -10 -------- Run | Yrd Mat Min Sub Hostile Shots Fired 122 | . 14 11 97 Missed 42 | . 5 3 34 Hits 80 | . 9 8 63 Projectile 80 | . 9 8 63 Damage Taken 1195 | . 74 98 1023 Core 260 | . 16 13 231 Absorbed by Shields . | . . . . Core Remaining (%) 100 | 100 . . . Volleys Fired 71 | . 10 17 44 Largest 2 | . 2 2 2 Hottest 100 | . 40 40 100 Shots Fired 105 | . 18 24 63 Gun 68 | . 16 14 38 Cannon . | . . . . Launcher 31 | . 2 10 19 Special 6 | . . . 6 Kinetic 73 | . 16 14 43 Thermal 6 | . . . 6 Explosive 26 | . 2 10 14 Electromagnetic . | . . . . Robot Hit Streak 10 | . 1 6 10 Robot Miss Streak 6 | . 5 1 6 Penetration Max . | . . . . Secondary Targets 1 | . . . 1 Max Gunslinging Chain 1 | . . . 1 Shots Hit Robots 54 | . 3 12 39 Core Hits 38 | . 4 12 22 Critical Kills . | . . . . Critical Parts Destroyed . | . . . . Critical Strikes . | . . . . Melee Attacks . | . . . . Impact . | . . . . Slashing . | . . . . Piercing . | . . . . Sneak Attacks . | . . . . Combat Hostiles . | . . . . Follow-up Attacks . | . . . . Damage Inflicted 2220 | . 154 369 1697 Guns 571 | . 45 142 384 Cannons . | . . . . Explosions 1649 | . 109 227 1313 Melee . | . . . . Ramming . | . . . . Kinetic 993 | . 45 142 806 Thermal . | . . . . Explosive 1227 | . 109 227 891 Electromagnetic . | . . . . Impact . | . . . . Slashing . | . . . . Piercing . | . . . . Highest Corruption . | . . . . Average Corruption . | . . . . Corruption Purged . | . . . . Corruption Blocked . | . . . . Overload Shots . | . . . . Overflow Damage 57 | . . . 57 Projectiles . | . . . . Explosions 57 | . . . 57 Melee . | . . . . Knockbacks . | . . . . Impact . | . . . . Kinetic . | . . . . Secondary . | . . . . Self-Inflicted Damage 122 | . . 35 87 Shots 5 | . . 2 3 Rammed . | . . . . Targets Rammed . | . . . . Kicked . | . . . . Crushed . | . . . . Highest Temperature . | . . . . Average Temperature . | . . . . Received Heat Transfer 183 | . . . 183 Siege Activations . | . . . . Martial Activations . | . . . . Shielding Activations . | . . . . Robots Disrupted . | . . . . Combat Hostiles . | . . . . Robots Corrupted . | . . . . Combat Hostiles . | . . . . Parts Fried . | . . . . Impact Corruptions . | . . . . Robots Melted . | . . . . Combat Hostiles . | . . . . Parts Melted 2 | . . . 2 Heat Transferred . | . . . . Parts Sabotaged . | . . . . Parts Stolen . | . . . . Parts Stripped . | . . . . Power Chain Reactions . | . . . . Alert | -11 -10 -10 -10 ------- Run | Yrd Mat Min Sub Maximum Alert Level . | . . . . Low Security (%) 100 | 100 100 100 . Level 1 . | . . . . Level 2 . | . . . . Level 3 . | . . . . Level 4 . | . . . . Level 5 . | . . . . High Security . | . . . . Max Security . | . . . . Peak Influence 104 | . 104 96 . Initial 16 | . . 16 . Average 16 | . 56 7 . Influence Increases 580 | . 144 121 315 Destroy 0b10 Robot/C 340 | . 60 60 220 Destroy 0b10 Robot/NC 20 | . . 20 . Destroy Leader 40 | . 10 10 20 Successful Hack 16 | . 16 . . Disable Machine 15 | . 15 . . Destroy Structure 44 | . 13 31 . Lose Combat Pursuer 105 | . 30 . 75 Influence Decreases 416 | . 100 165 151 Entered New Map 28 | . . 28 . Time Decay 348 | . 100 137 111 Lost Part 40 | . . . 40 Squads Dispatched 2 | . 1 1 . Investigation 1 | . . 1 . Extermination . | . . . . Reinforcement 1 | . 1 . . Assault . | . . . . Garrison . | . . . . Intercept . | . . . . Searches Triggered . | . . . . Construction Impeded . | . . . . Haulers Reinforced . | . . . . Active Scanning Responses . | . . . . Cargo Convoy Interrupts . | . . . . Stealth | -11 -10 -10 -10 --------- Run | Yrd Mat Min Sub Distress Signals 1 | . 1 . . Communications Jammed . | . . . . Distress Signals . | . . . . Times Spotted 40 | . 11 3 26 Peak Tracking Total 4 | . 3 3 4 Tactical Retreats 4 | . 1 . 3 Traps | -11 -10 -10 -10 ------- Run | Yrd Mat Min Sub Traps Triggered . | . . . . Indirectly . | . . . . Trap Hack Attempts . | . . . . Triggered . | . . . . Disarmed . | . . . . Reprogrammed . | . . . . Reused . | . . . . Traps Extracted . | . . . . Installed 3 | . . 3 . Triggered . | . . . . Machines | -11 -10 -10 -10 ---------- Run | Yrd Mat Min Sub Machines Disabled 2 | . 1 . 1 Max in Single Turn 1 | . 1 . 1 Machines Repaired . | . . . . Machines Dismantled . | . . . . Machines Sabotaged . | . . . . Overloaded Fab Kills . | . . . . Hacking | -11 -10 -10 -10 --------- Run | Yrd Mat Min Sub Machines Accessed 6 | . 4 1 1 Terminals 4 | . 4 . . Fabricators . | . . . . Repair Stations . | . . . . Recycling Units . | . . . . Scanalyzers . | . . . . Garrison Access . | . . . . Total Hacks 14 | . 12 1 1 Successful 7 | . 5 1 1 Failed 7 | . 7 . . Catastrophic 2 | . 2 . . Database Lockouts . | . . . . Manual 9 | . 9 . . Terminals 12 | . 12 . . Fabricators . | . . . . Repair Stations . | . . . . Recycling Units . | . . . . Scanalyzers . | . . . . Garrison Access . | . . . . Terminal Hacks 3 | . 1 1 1 Robot Analysis 1 | . 1 . . Open Door 1 | . . 1 . Proto ID Catalog 1 | . . . 1 Fabricator Hacks . | . . . . Repair Station Hacks . | . . . . Recycling Unit Hacks . | . . . . Scanalyzer . | . . . . Garrison Access Hacks . | . . . . Unauthorized Hacks 4 | . 4 . . Terminals 4 | . 4 . . Botnet 4 | . 4 . . Fabricators . | . . . . Repair Stations . | . . . . Recycling Units . | . . . . Scanalyzers . | . . . . Garrison Access . | . . . . Data Cores Recovered . | . . . . Used . | . . . . Hacking Detections 4 | . 4 . . Full Trace Events . | . . . . Feedback Events . | . . . . Feedback Blocked . | . . . . Robot Schematics Acquired . | . . . . Robots Built . | . . . . Authchips . | . . . . Time . | . . . . Total Robot Build Rating . | . . . . Part Schematics Acquired . | . . . . Parts Built . | . . . . Authchips . | . . . . Time . | . . . . Total Part Build Rating . | . . . . Part Studies Acquired . | . . . . Parts Repaired . | . . . . Time . | . . . . Parts Recycled . | . . . . Recycled Matter . | . . . . Retrieved Matter . | . . . . Retrieved Components . | . . . . Parts Scanalyzed . | . . . . Part Schematics Acquired . | . . . . Parts Damaged . | . . . . Bothacking | -11 -10 -10 -10 ------------ Run | Yrd Mat Min Sub Used RIF Installer . | . . . . Robots Hacked . | . . . . Non-combat . | . . . . Combat . | . . . . Robot Hacks Applied . | . . . . Relay Couplers Released . | . . . . Fabnet Peak Effective % . | . . . . Robots Rewired . | . . . . Allies Hacked . | . . . . Hacks Repelled . | . . . . Allies | -11 -10 -10 -10 -------- Run | Yrd Mat Min Sub Total Allies . | . . . . Largest Group . | . . . . Highest-Rated Group . | . . . . Highest-Rated Ally . | . . . . Total Orders . | . . . . Ally Attacks . | . . . . Total Damage . | . . . . Kills . | . . . . Allies Corrupted . | . . . . Allies Melted . | . . . . Intel | -11 -10 -10 -10 ------- Run | Yrd Mat Min Sub Active Infowar (turns) . | . . . . Robot Analysis Total 1 | . 1 . . Derelict Logs Recovered 3 | . . 2 1 Drone Launches . | . . . . Drone Recoveries . | . . . . Exploration | -11 -10 -10 -10 ------------- Run | Yrd Mat Min Sub Turns Passed 3396 | 3 292 1338 1763 Spaces Moved 1714 | 1 157 559 997 Core . | . . . . Treads 1625 | 1 157 559 908 Legs . | . . . . Wheels 89 | . . . 89 Hover . | . . . . Flight . | . . . . Fastest Speed 110 | 160 160 160 110 Average Speed 157 | 160 160 160 155 Slowest Speed 240 | 160 160 160 240 Overloaded Moves . | . . . . Propulsion Burnouts . | . . . . Robots Hopped . | . . . . Potential Cave-ins . | . . . . Cave-ins Triggered . | . . . . Exploration Rate (%) 44 | 2 34 76 66 Regions Visited 3 Branch Regions 2 Pre-discovered Areas 2 | . . 1 1 Known Exits Taken . | . . . . Unknown Exits Taken 3 | 1 1 1 . Scrap Searched 6 | . . 1 5 Spaces Dug 26 | . 6 15 5 Terrain Destroyed 179 | . 10 54 115 Melee . | . . . . Projectile . | . . . . AOE 179 | . 10 54 115 Terrain Rammed . | . . . . Walls Destroyed . | . . . . Machines Disabled . | . . . . Actions | -11 -10 -10 -10 --------- Run | Yrd Mat Min Sub Total 2292 | 2 180 980 1130 Wait 441 | . 2 384 55 Move 1711 | . 156 558 997 Hop . | . . . . Pick Up 13 | . 4 5 4 Fast Attach 3 | . 1 1 1 Attach 2 | . . . 2 Detach . | . . . . Swap 32 | 2 3 7 20 Drop 16 | . 4 5 7 Fire 71 | . 10 17 44 Melee . | . . . . Ram . | . . . . Kick . | . . . . Crush . | . . . . Escape Stasis . | . . . . Rewire . | . . . . Trap 3 | . . 3 . Miscellaneous . | . . . . Route ------- -11/Scrapyard -10/Materials -10/Mines (discovered 2 exits: [*Mat] / *Sub) -10/Subcaves (discovered 1 exit: [*Mat]) History --------- Turn | Location | Event 4 | -11/Scrapyard | Discovered new exit (range 0) 4 | -11/Scrapyard | Entered Materials 283 | -10/Materials | Discovered new exit (range 7) 296 | -10/Materials | Entered Mines 308 | -10/Mines | Build established: Mutant 340 | -10/Mines | Discovered new exit (range 6) 676 | -10/Mines | Learned 2 Materials zone layouts 1362 | -10/Mines | Met a Derelict shopkeep closing up shop 1448 | -10/Mines | Found a hidden stash of uninstalled traps 1616 | -10/Mines | Discovered new exit (range 6) 1634 | -10/Mines | Entered Subcaves 1840 | -10/Subcaves | Disturbed a concealed Subdweller 2279 | -10/Subcaves | Visited 4L-MR0's lab 2309 | -10/Subcaves | Found Meta Core 2426 | -10/Subcaves | Shifting Twisted Machinery released Sub. Power Source 2649 | -10/Subcaves | Shifting Twisted Machinery released Sub. Laser 2761 | -10/Subcaves | Discovered new exit (range 14) 2795 | -10/Subcaves | Learned location of Storage (-8) 2804 | -10/Subcaves | Shifting Twisted Machinery released Mak. Sword 2825 | -10/Subcaves | Shifting Twisted Machinery released Sub. Beam Cannon 2996 | -10/Subcaves | Ambushed by Subdweller buried in earth 2996 | -10/Subcaves | Ambushed by Subdweller buried in earth 3000 | -10/Subcaves | Ambushed by Subdweller buried in earth 3003 | -10/Subcaves | Core integrity fell below 50% 3390 | -10/Subcaves | Core integrity fell below 20% 3397 | -10/Subcaves | Destroyed by U9-C24(R) with Subdweller Machine Gun Last Messages --------------- 03283_ Flight Unit fries itself beyond repair. 03287_ Lgt. Assault Rifle fries itself beyond repair. 03291_ Flight Unit fries itself beyond repair. 03343_ Grenade Launcher destroyed. 03343_ Destroyed Grenade Launcher. 03346_ S-10 Pest destroyed. 03346_ Destroyed Flight Unit. 03346_ S-10 Pest destroyed. 03346_ Destroyed Lgt. Ion Engine. 03346_ S-10 Pest destroyed. 03351_ Flight Unit fries itself beyond repair. 03357_ Acquired 5 matter. 03358_ Lgt. Ion Engine fries itself beyond repair. 03359_ Acquired Lgt. Assault Rifle. 03391_ Hpw. Shotgun destroyed. 03392_ 95-E7E(R) destroyed. 03395_ Lgt. Armor Plating destroyed. 03397_ QP-M01(R): "ARGHSUB!" Map ----- +----------------------------------------------------+ | ??????????????????? ????????????????????? | | ??????????????????? ????????????????????? | | ??????????????????? ????????????????????? | | ??????????????????? ????????????????????? | | ??????????????????? ????????????????????? | | ??????????????????????????????????????????? | | ????????????????????? ????????????????????? | | ???????????????????? ????????????????????? | | ???????????????????? ????????????????????? | | ???????????????????? ????????????????????? | | ???????????????????? ????????????????????? | | ????????????????????# "???????????????????? | | ????????????????????# """ ????????????????? | | ????????????????????# """ ????????????????? | | ????????????????????# """?????????????????? | | ???????????????????## """?????????????????? | | ???????????????????# ??????????????????? | | ???????????????????# ??????????????????? | | ???????????????????# #??????????????????? | | ?????????????????### #??????????????????? | | ?????????????????# #??????????????????? | | ?????????????????# R#??????????????????? | | ?????????????????## R###????????????????? | | ??????????????????## ####?????????????? | | ???????????????????## #?????????????? | | #???????????????????## @ ##?????????????? | | ##???????????????????#; ##??????????????? | | ####???????????????# ; ;;???????????????? | | ##??????????????# ; ;???????????????? | | ##?????????????#;; ;##??????????????? | | ### #????????????# ; ##?????????????? | | #?# ########???? #?????????????? | | #?## # "#### ##?????????????? | | #??# "# # & ;#??????????????? | | ???# "" #???????????????? | | ???# ;????????????????? | | ???## R ????????????????? | | ????### ????????????????? | | ??????# """" R ????????????????? | | ?????# "# # ;; ????????????????? | | ????# ##### ;##????????????????? | | ????# """""#???# #??????????????????? | | ??? """"" ???## "#??????????????????? | | ?? """"" "???# "####??????????????????? | | ? ## """""""???# ?????????????????????? | | ##?## ?????"???? " ????????????????????? | | ?????##?????????? #????????????????????? | | ????????????????? #????????????????????? | | ????????????????? ????????????????????? | | ????????????????""" ????????????????????? | +----------------------------------------------------+ Best States ------------- Heat Dissipation 39 Energy Generation 14 Energy Capacity 275 Matter Stores 300 Matter Capacity 300 Sight Range 16 Terrain Scan Density 10 Armor Coverage 150 Evasion (%) 40 Recoil Reduction 2 Item Schematics ----------------- None Robot Schematics ------------------ None Fabricated ------------ Nothing Repaired ---------- Nothing Studied --------- None Alien Tech Used ----------------- None Achievements -------------- None Challenges ------------ None Game ------ Seed MassRainbowRipteeth Manual? 0 Play Time 00:16:13 Cumulative 196.8 hours Start 2026.06.24 @ 23:42:24 End 2026.06.24 @ 23:55:53 Sessions 1 Manual Loads 0 Difficulty Rogue Special Mode None Game No. 161 Rogue 161 Adventurer 0 Explorer 0 Win Type - Total 3 Types 3/0/0/0/0/0/0/0/0/0 Lore% 76 Gallery% 66 Achievement% 56 Wizard Run 0 Options --------- Layout 2 ASCII 0 Keyboard 0 Movement Mouse Keybinds 0 Fullscreen 1 Font 24/Smallcaps Map View 50x44 Zoom Use 0% Tactical HUD 1 Map Filters NONE Filters NONE Steam 1 RUN: b41c5f26-7144-443e-9e12-75e4772c9443